Cogmind - Beta 16 @@@ ROGUE MODE // 2025.12.20 @ 22:02:41 Player: aoemica Result: Escaped! Performance ------------- Evolutions (9) 4500 Regions Visited (16) 3200 Robots Destroyed (38) 190 Value Destroyed (566) 566 Prototype IDs (25) 500 Alien Tech Used (0) 0 Bonus (7887) 7887 TOTAL SCORE: 16843 Bonus ------- Pacifist 270 Entered DSFs 1000 Aligned with FarCom 300 Win 3000 Win Speed 3317 Cogmind --------- Core Integrity 1427/1600 Matter 112/300 Energy 95/150 System Corruption 0% Temperature Cool (51) Movement Flying (29) Location To Epsilon Eridani Parts ------- > --- POWER (2) -------- Micro Antimatter Reactor > --- PROPULSION (10) -- Combat Linear Gravjet Combat Linear Gravjet Field Propulsion Array Field Propulsion Array Impulse Thruster Array Improved Q-thruster Improved Q-thruster > --- UTILITY (11) ----- (None) > --- WEAPON (2) ------- Enhanced Nova Cannon Advanced Datajack > --- INVENTORY (5) ---- Advanced Heavy Siege Treads Field Propulsion Array Peak State ------------ > --- POWER ------------ Micro Antimatter Reactor > --- PROPULSION ------- Combat Linear Gravjet Combat Linear Gravjet Field Propulsion Array Field Propulsion Array Impulse Thruster Array Improved Q-thruster Improved Q-thruster > --- UTILITY ---------- Advanced Melee Analysis Suite ECM Suite Reaction Control System Advanced Phase Shifter Hacking Suite > --- WEAPON ----------- Enhanced Nova Cannon Advanced Datajack > --- INVENTORY -------- Advanced Heavy Siege Treads Field Propulsion Array Enhanced Nova Cannon [Rating: 131] Favorites ----------- Power Micro Antimatter Reactor Engine Light Ion Engine Power Core Light Nuclear Core Reactor Micro Antimatter Reactor Propulsion VTOL Module Treads Light Treads Leg Aluminum Leg Hover Unit Gravmag Array Flight Unit VTOL Module Utility Improved Light Armor Plating Device Structural Scanner Storage Small Storage Unit Processor Advanced Melee Analysis Suite Hackware System Shield Protection Improved Light Armor Plating Weapon Spear Energy Gun Medium Laser Energy Cannon Enhanced Nova Cannon Ballistic Gun Light Assault Rifle Launcher Rocket Launcher Slashing Weapon Power Sword Piercing Weapon Spear Special Melee Weapon Advanced Datajack Build | -11 -10 -10 -10 -9 -8 -7 -7 -6 -5 -5 -5 -4 -3 -2 -2 -1 ------- Run | Yrd Mat Min Exi Min Mat Fac DSF Fac Fac Upp Upp Fac Res Res DSF Acc Slots Evolved 18 | . . . . . 4 2 . 2 2 . . 2 2 2 . 2 Power 1 | . . . . . . . . . 1 . . . . . . . Propulsion 8 | . . . . . 3 1 . . . . . 1 1 1 . 1 Utility 9 | . . . . . 1 1 . 2 1 . . 1 1 1 . 1 Weapon . | . . . . . . . . . . . . . . . . . Parts Attached 78 | . . 4 . . 2 5 4 18 2 1 3 3 8 13 . 15 Power 6 | . . . . . . . . 2 1 . 1 . 1 1 . . Engine 2 | . . . . . . . . 1 1 . . . . . . . Core 2 | . . . . . . . . 1 . . 1 . . . . . Reactor 2 | . . . . . . . . . . . . . 1 1 . . Propulsion 33 | . . 3 . . 1 2 4 7 . . 2 . 2 6 . 6 Treads 3 | . . 2 . . 1 . . . . . . . . . . . Leg 1 | . . 1 . . . . . . . . . . . . . . Wheel . | . . . . . . . . . . . . . . . . . Hover 5 | . . . . . . 1 . 1 . . . . 1 . . 2 Flight 24 | . . . . . . 1 4 6 . . 2 . 1 6 . 4 Utility 28 | . . . . . . 2 . 7 1 . . 2 4 6 . 6 Device 10 | . . . . . . . . 2 1 . . 1 . 2 . 4 Storage . | . . . . . . . . . . . . . . . . . Processor 7 | . . . . . . . . 2 . . . . 3 1 . 1 Hackware 7 | . . . . . . 1 . 3 . . . 1 1 . . 1 Protection 4 | . . . . . . 1 . . . . . . . 3 . . Artifact . | . . . . . . . . . . . . . . . . . Weapon 11 | . . 1 . . 1 1 . 2 . 1 . 1 1 . . 3 Energy Gun . | . . . . . . . . . . . . . . . . . Energy Cannon 3 | . . . . . . . . . . . . . 1 . . 2 Ballistic Gun 4 | . . 1 . . . 1 . 1 . . . 1 . . . . Ballistic Cannon . | . . . . . . . . . . . . . . . . . Launcher 1 | . . . . . 1 . . . . . . . . . . . Special Weapon . | . . . . . . . . . . . . . . . . . Impact Weapon . | . . . . . . . . . . . . . . . . . Slashing Weapon 1 | . . . . . . . . . . 1 . . . . . . Piercing Weapon 1 | . . . . . . . . 1 . . . . . . . . Special Melee Weapon 1 | . . . . . . . . . . . . . . . . 1 Unidentified Prototypes 2 | . . . . . . . . . . . . . . 1 . 1 Parts Lost 8 | . . . . . . . 3 . . . . . . . . 5 Power . | . . . . . . . . . . . . . . . . . Propulsion 3 | . . . . . . . 3 . . . . . . . . . Utility 5 | . . . . . . . . . . . . . . . . 5 Weapon . | . . . . . . . . . . . . . . . . . Highest Loss Streak 4 | . . . . . . . 3 . . . . . . . . 4 To Critical Strikes . | . . . . . . . . . . . . . . . . . Average Backups 3 | 5 5 3 5 5 4 2 5 4 1 1 5 2 2 3 4 2 Power . | 1 . . . . . . . 1 . . . . . . 1 . Propulsion 1 | 4 4 2 3 3 2 . 1 . . . 2 . . 1 3 . Utility . | . . . . . . 1 2 . . . 1 1 . . . . Weapon 1 | . 1 1 2 2 1 1 2 1 1 1 2 1 1 1 . . Tool/Special . | . . . . . . . . . . . . . . . . . Unused Backups 15 | . 1 . . 1 . . 1 3 . . . 1 3 2 . 3 Power 5 | . . . . . . . . 2 . . . . 1 1 . 1 Propulsion 3 | . 1 . . . . . . . . . . . . . . 2 Utility 4 | . . . . . . . 1 . . . . 1 2 . . . Weapon 3 | . . . . 1 . . . 1 . . . . . 1 . . Tool/Special . | . . . . . . . . . . . . . . . . . Average Slot Usage (%) 31 | . . 24 . . 12 25 4 74 28 23 13 26 35 44 . 29 Core 1 | . . . . . . . . 2 . . 3 . . . . . Treads 1 | . . 16 . . 11 . . . . . . . . . . . Hover 1 | . . . . . . 2 . 3 . . . . 2 . . 2 Flight 11 | . . . . . . 5 4 22 9 9 8 9 10 24 . 12 Device 2 | . . . . . . . . 7 4 . . 4 . 6 . 3 Processor 2 | . . . . . . . . 5 . . . . 8 2 . 1 Hackware 2 | . . . . . . 5 . 11 . . . 3 2 . . . Protection 1 | . . . . . . 4 . 5 4 4 . . 3 2 . . Ballistic Gun 1 | . . 1 . . . 5 . 5 . . . 3 . . . . Piercing Weapon 2 | . . . . . . . . 5 4 4 . 4 3 . . . Peak Build Rating 131 | 6 . 3 . . 5 12 7 47 21 17 8 25 69 120 4 131 Average Rating 30 | 3 . 1 . . 1 9 3 38 17 14 6 22 36 88 4 72 On Entrance 1 | 6 . . . . . 1 1 1 1 7 1 1 1 2 4 4 Avg Prop Armor Cover (%) 11 | . . 38 . . 43 7 . 5 . . . . 7 4 . 4 Naked Turns 459 | . 64 16 107 16 79 . 9 3 . 11 123 . . . 31 . Heaviest Build 28 | . . 2 . . 4 4 . 16 13 8 5 10 23 26 . 28 Greatest Support 64 | 3 3 3 3 3 3 4 5 30 10 10 8 11 27 58 3 64 Greatest Overweight (x) 1 | . . . . . 1 . . . 1 . 1 . . . . . Average Overweight (x) . | . . . . . . . . . . . . . . . . . Largest Inventory Capacity 8 | 8 5 5 5 5 5 5 5 5 5 5 5 5 5 5 5 5 Average Capacity 5 | 5 5 5 5 5 5 5 5 5 5 5 5 5 5 5 5 5 Most Carried 5 | 5 5 5 5 5 5 4 5 5 5 5 5 5 5 5 5 5 Average Carried 3 | 4 5 3 5 5 4 1 5 4 1 1 5 2 2 3 5 2 Final Capacity 5 | 5 5 5 5 5 5 5 5 5 5 5 5 5 5 5 5 5 Final Carried 5 | 5 5 5 5 5 5 5 5 5 5 5 5 5 5 5 5 4 Class Distribution -------------------- 53% | Sprinter 36% | Mutant 5% | Hacker-Sprinter 4% | Scavenger-Sprinter Dominant Class ---------------- Mutant | -10/Materials Mutant | -10/Mines Mutant | -10/Exiles Mutant | -9/Mines Mutant | -8/Materials Mutant | -7/Factory Mutant | -7/DSF Sprinter | -6/Factory Sprinter | -5/Factory Sprinter | -5/Upper Caves Sprinter | -5/Upper Caves Sprinter | -4/Factory Sprinter | -3/Research Sprinter | -2/Research Mutant | -2/DSF Mutant | -1/Access Resources | -11 -10 -10 -10 -9 -8 -7 -7 -6 -5 -5 -5 -4 -3 -2 -2 -1 ----------- Run | Yrd Mat Min Exi Min Mat Fac DSF Fac Fac Upp Upp Fac Res Res DSF Acc Matter Collected 1277 | 200 . 20 . . 15 . 8 429 . 97 191 50 100 160 . 7 Remotely . | . . . . . . . . . . . . . . . . . Salvage Created 938 | . . . . . 28 . . 319 106 48 . 115 237 85 . . Parts 71 | . . . . . 11 . . 33 11 1 . 4 10 1 . . Haulers Intercepted 3 | . . . . . . . . . . . . 1 1 1 . . Recyclers Shooed . | . . . . . . . . . . . . . . . . . Parts Field Recycled . | . . . . . . . . . . . . . . . . . Retrieved Matter . | . . . . . . . . . . . . . . . . . Parts Self-Destructed 20 | . . . . . . . . . . 1 19 . . . . . Prevented 1 | . . . . . . . . . . . 1 . . . . . Parts Restored . | . . . . . . . . . . . . . . . . . Kills | -11 -10 -10 -10 -9 -8 -7 -7 -6 -5 -5 -5 -4 -3 -2 -2 -1 ------- Run | Yrd Mat Min Exi Min Mat Fac DSF Fac Fac Upp Upp Fac Res Res DSF Acc Combat Hostiles Destroyed 16 | . . . . . 7 . . 4 5 . . . . . . . AOE 16 | . . . . . 7 . . 4 5 . . . . . . . Classes Destroyed 9 | . . . . . 1 . . 5 . 1 . 1 1 . . . Worker 8 | . . . . . . . . 5 3 . . . . . . . Builder 4 | . . . . . . . . 3 1 . . . . . . . Tunneler 3 | . . . . . . . . 3 . . . . . . . . Hauler 3 | . . . . . . . . . . . . 1 1 1 . . Recycler 1 | . . . . . . . . . . . . . 1 . . . Minesweeper 1 | . . . . . . . . . . 1 . . . . . . Mechanic 1 | . . . . . . . . 1 . . . . . . . . Operator 1 | . . . . . . . . 1 . . . . . . . . Swarmer 16 | . . . . . 7 . . 4 5 . . . . . . . Decomposer 1 | . . . . . . . . . . 1 . . . . . . Best Kill Streak 7 | . . . . . 4 . . 4 7 1 . 1 2 1 . . Combat Bots Only 5 | . . . . . 4 . . 4 5 . . . . . . . Max Kills in Single Turn 3 | . . . . . 3 . . 2 3 1 . 1 1 1 . . Gunslinging . | . . . . . . . . . . . . . . . . . Exploded 3 | . . . . . 3 . . 2 2 . . . . . . . Melee . | . . . . . . . . . . . . . . . . . Uniques/NPCs Destroyed . | . . . . . . . . . . . . . . . . . Combat | -11 -10 -10 -10 -9 -8 -7 -7 -6 -5 -5 -5 -4 -3 -2 -2 -1 -------- Run | Yrd Mat Min Exi Min Mat Fac DSF Fac Fac Upp Upp Fac Res Res DSF Acc Hostile Shots Fired 160 | . 15 7 . . 29 . 4 7 19 7 8 2 . . 1 61 Missed 72 | . 8 1 . . 12 . . 4 8 3 3 2 . . . 31 Hits 88 | . 7 6 . . 17 . 4 3 11 4 5 . . . 1 30 Projectile 88 | . 7 6 . . 17 . 4 3 11 4 5 . . . 1 30 Critical Strikes 4 | . . 1 . . . . 1 . 1 . . . . . . 1 Damage Taken 1786 | . 73 80 . . 235 . 218 44 184 72 106 . . . 91 683 Core 862 | . 73 80 . . 152 . 143 30 14 . 106 . . . 91 173 Absorbed by Shields . | . . . . . . . . . . . . . . . . . Core Remaining (%) 85 | 100 . . . 38 72 . 79 96 . . 88 100 100 . 93 89 Volleys Fired 47 | . . . . . 4 . . 3 4 . . . . 16 . 20 Largest 1 | . . . . . 1 . . 1 1 . . . . 1 . 1 Hottest 120 | . . . . . 33 . . 33 33 . . . . 105 . 120 Shots Fired 47 | . . . . . 4 . . 3 4 . . . . 16 . 20 Gun . | . . . . . . . . . . . . . . . . . Cannon 36 | . . . . . . . . . . . . . . 16 . 20 Launcher 11 | . . . . . 4 . . 3 4 . . . . . . . Special . | . . . . . . . . . . . . . . . . . Kinetic . | . . . . . . . . . . . . . . . . . Thermal 36 | . . . . . . . . . . . . . . 16 . 20 Explosive 11 | . . . . . 4 . . 3 4 . . . . . . . Electromagnetic . | . . . . . . . . . . . . . . . . . Robot Hit Streak 3 | . . . . . . . . . . . . . . 3 . . Robot Miss Streak . | . . . . . . . . . . . . . . . . . Penetration Max . | . . . . . . . . . . . . . . . . . Secondary Targets . | . . . . . . . . . . . . . . . . . Shots Hit Robots 34 | . . . . . . . . 17 5 3 . 3 3 3 . . Core Hits 46 | . . 1 . . 7 . . 17 13 2 . 2 2 2 . . Critical Kills . | . . . . . . . . . . . . . . . . . Critical Parts Destroyed . | . . . . . . . . . . . . . . . . . Critical Strikes 3 | . . . . . . . . 3 . . . . . . . . Impale 3 | . . . . . . . . 3 . . . . . . . . Melee Attacks 82 | . . . . . . . . 31 16 10 . 12 13 . . . Impact . | . . . . . . . . . . . . . . . . . Slashing 4 | . . . . . . . . . . 4 . . . . . . Piercing 78 | . . . . . . . . 31 16 6 . 12 13 . . . Sneak Attacks 21 | . . . . . . . . 13 3 2 . 1 2 . . . Combat Hostiles . | . . . . . . . . . . . . . . . . . Follow-up Attacks . | . . . . . . . . . . . . . . . . . Damage Inflicted 3328 | . . 7 . . 420 . . 1394 850 220 . 145 184 108 . . Guns . | . . . . . . . . . . . . . . . . . Cannons 108 | . . . . . . . . . . . . . . 108 . . Explosions 1237 | . . . . . 420 . . 259 558 . . . . . . . Melee 1976 | . . . . . . . . 1135 292 220 . 145 184 . . . Ramming 7 | . . 7 . . . . . . . . . . . . . . Kinetic . | . . . . . . . . . . . . . . . . . Thermal 108 | . . . . . . . . . . . . . . 108 . . Explosive 1237 | . . . . . 420 . . 259 558 . . . . . . . Electromagnetic . | . . . . . . . . . . . . . . . . . Impact . | . . . . . . . . . . . . . . . . . Slashing 103 | . . . . . . . . . . 103 . . . . . . Piercing 1873 | . . . . . . . . 1135 292 117 . 145 184 . . . Highest Corruption 3 | . . . . . 3 . . 1 3 3 3 . . . . . Average Corruption 2 | . . . . . 2 . . 1 1 3 3 . . . . . Corruption Purged . | . . . . . . . . . . . . . . . . . Corruption Blocked . | . . . . . . . . . . . . . . . . . Effects 17 | . . . . . . . . . 2 3 12 . . . . . Message Errors 5 | . . . . . . . . . 1 2 2 . . . . . Matter Fused 7 | . . . . . . . . . . . 7 . . . . . Heat Flow Errors 2 | . . . . . . . . . . . 2 . . . . . Energy Discharges 2 | . . . . . . . . . . 1 1 . . . . . Alerts 1 | . . . . . . . . . 1 . . . . . . . Overload Shots . | . . . . . . . . . . . . . . . . . Overflow Damage 372 | . . . . . 28 . . 234 47 63 . . . . . . Projectiles . | . . . . . . . . . . . . . . . . . Explosions 75 | . . . . . 28 . . . 47 . . . . . . . Melee 297 | . . . . . . . . 234 . 63 . . . . . . Knockbacks . | . . . . . . . . . . . . . . . . . Impact . | . . . . . . . . . . . . . . . . . Kinetic . | . . . . . . . . . . . . . . . . . Secondary . | . . . . . . . . . . . . . . . . . Self-Inflicted Damage . | . . . . . . . . . . . . . . . . . Shots . | . . . . . . . . . . . . . . . . . Rammed 1 | . . 1 . . . . . . . . . . . . . . Targets Rammed 4 | . . 4 . . . . . . . . . . . . . . Kicked 3 | . . 3 . . . . . . . . . . . . . . Crushed . | . . . . . . . . . . . . . . . . . Highest Temperature 249 | . . 2 . . . . . 72 . . 249 . . 155 . 159 Average Temperature 55 | . . 2 . . . . . 17 . . 118 . . 66 . 65 Received Heat Transfer 228 | . 30 63 . . 90 . . . 36 . 9 . . . . . Siege Activations . | . . . . . . . . . . . . . . . . . Martial Activations . | . . . . . . . . . . . . . . . . . Shielding Activations . | . . . . . . . . . . . . . . . . . Robots Disrupted . | . . . . . . . . . . . . . . . . . Combat Hostiles . | . . . . . . . . . . . . . . . . . Robots Corrupted . | . . . . . . . . . . . . . . . . . Combat Hostiles . | . . . . . . . . . . . . . . . . . Parts Fried . | . . . . . . . . . . . . . . . . . Impact Corruptions . | . . . . . . . . . . . . . . . . . Robots Melted . | . . . . . . . . . . . . . . . . . Combat Hostiles . | . . . . . . . . . . . . . . . . . Parts Melted . | . . . . . . . . . . . . . . . . . Heat Transferred 111 | . . . . . . . . . . . . . . 111 . . Parts Sabotaged . | . . . . . . . . . . . . . . . . . Parts Stolen . | . . . . . . . . . . . . . . . . . Parts Stripped . | . . . . . . . . . . . . . . . . . Power Chain Reactions . | . . . . . . . . . . . . . . . . . Alert | -11 -10 -10 -10 -9 -8 -7 -7 -6 -5 -5 -5 -4 -3 -2 -2 -1 ------- Run | Yrd Mat Min Exi Min Mat Fac DSF Fac Fac Upp Upp Fac Res Res DSF Acc Maximum Alert Level 1 | . . . . . 1 . . . 1 . . . . . . . Low Security (%) 98 | 100 100 100 . 100 91 100 100 100 87 . . 100 100 100 100 100 Level 1 1 | . . . . . 8 . . . 12 . . . . . . . Level 2 . | . . . . . . . . . . . . . . . . . Level 3 . | . . . . . . . . . . . . . . . . . Level 4 . | . . . . . . . . . . . . . . . . . Level 5 . | . . . . . . . . . . . . . . . . . High Security . | . . . . . . . . . . . . . . . . . Max Security . | . . . . . . . . . . . . . . . . . Peak Influence 305 | . 30 40 . . 305 146 102 146 288 . . 91 27 28 15 52 Initial 138 | . . . . . . 138 102 37 59 . . . 27 . 15 8 Average 36 | . 13 11 . . 92 137 87 57 81 . . 51 5 11 15 5 Influence Increases 1638 | . 30 60 . . 345 18 . 292 349 35 75 183 32 90 . 129 Destroy 0b10 Robot/C 320 | . . . . . 140 . . 80 100 . . . . . . . Destroy 0b10 Robot/NC 110 | . . . . . . . . 65 20 5 . 5 10 5 . . Destroy Leader 46 | . . . . . 20 . . 10 10 . . 2 2 2 . . Successful Hack 90 | . . . . . . 18 . . . . . 40 . 32 . . Disable Machine 135 | . . . . . 60 . . 60 . . . . . . . 15 Destroy Structure 247 | . . . . . 65 . . 17 54 . . 16 20 36 . 39 Partial Spotted 195 | . 30 . . . . . . 15 45 . . 30 . 15 . 60 Lose Combat Pursuer 495 | . . 60 . . 60 . . 45 120 30 75 90 . . . 15 Influence Decreases 1623 | . 30 60 . . 40 177 74 242 183 178 220 130 85 69 6 129 Entered New Map 484 | . . . . . . 167 44 35 63 108 28 . 26 . 6 7 Time Decay 1065 | . 30 60 . . 40 10 . 207 120 70 192 120 59 69 . 88 Lost Part 64 | . . . . . . . 30 . . . . . . . . 34 Lost Ally 10 | . . . . . . . . . . . . 10 . . . . Squads Dispatched 17 | . 1 . . . . . . 3 3 . 1 . 1 3 1 4 Investigation 2 | . . . . . . . . . . . . . . 1 . 1 Extermination 7 | . . . . . . . . 2 1 . . . 1 1 . 2 Reinforcement 7 | . 1 . . . . . . 1 2 . . . . 1 1 1 Assault 1 | . . . . . . . . . . . 1 . . . . . Garrison . | . . . . . . . . . . . . . . . . . Intercept . | . . . . . . . . . . . . . . . . . Searches Triggered . | . . . . . . . . . . . . . . . . . Construction Impeded 1 | . . . . . . . . . 1 . . . . . . . Haulers Reinforced 2 | . . . . . . . . . 1 . . . . 1 . . Active Scanning Responses . | . . . . . . . . . . . . . . . . . Cargo Convoy Interrupts . | . . . . . . . . . . . . . . . . . Stealth | -11 -10 -10 -10 -9 -8 -7 -7 -6 -5 -5 -5 -4 -3 -2 -2 -1 --------- Run | Yrd Mat Min Exi Min Mat Fac DSF Fac Fac Upp Upp Fac Res Res DSF Acc Distress Signals 10 | . 1 . . . 1 . . . 4 . . 2 . . . 2 Communications Jammed . | . . . . . . . . . . . . . . . . . Distress Signals . | . . . . . . . . . . . . . . . . . Times Spotted 87 | . 9 4 . . 13 . . 11 17 3 15 4 1 . . 10 Peak Tracking Total 11 | . 8 2 . . 9 . 1 4 9 3 7 7 1 . 1 11 Tactical Retreats 20 | . . 2 . . 2 . . 2 5 2 1 4 . . . 2 ECM-based Alert Blocks 4 | . . . . . . . . . . . . . . . . 4 Traps | -11 -10 -10 -10 -9 -8 -7 -7 -6 -5 -5 -5 -4 -3 -2 -2 -1 ------- Run | Yrd Mat Min Exi Min Mat Fac DSF Fac Fac Upp Upp Fac Res Res DSF Acc Traps Triggered 7 | . . . . . 2 . . 2 2 . . . . . . 1 Indirectly . | . . . . . . . . . . . . . . . . . Trap Hack Attempts . | . . . . . . . . . . . . . . . . . Triggered . | . . . . . . . . . . . . . . . . . Disarmed . | . . . . . . . . . . . . . . . . . Reprogrammed . | . . . . . . . . . . . . . . . . . Reused . | . . . . . . . . . . . . . . . . . Traps Extracted . | . . . . . . . . . . . . . . . . . Installed . | . . . . . . . . . . . . . . . . . Triggered . | . . . . . . . . . . . . . . . . . Machines | -11 -10 -10 -10 -9 -8 -7 -7 -6 -5 -5 -5 -4 -3 -2 -2 -1 ---------- Run | Yrd Mat Min Exi Min Mat Fac DSF Fac Fac Upp Upp Fac Res Res DSF Acc Machines Disabled 9 | . . . . . 4 . . 4 . . . . . . . 1 Max in Single Turn 2 | . . . . . 2 . . 2 . . . . . . . 1 Machines Repaired . | . . . . . . . . . . . . . . . . . Machines Dismantled . | . . . . . . . . . . . . . . . . . Machines Sabotaged . | . . . . . . . . . . . . . . . . . Overloaded Fab Kills . | . . . . . . . . . . . . . . . . . Hacking | -11 -10 -10 -10 -9 -8 -7 -7 -6 -5 -5 -5 -4 -3 -2 -2 -1 --------- Run | Yrd Mat Min Exi Min Mat Fac DSF Fac Fac Upp Upp Fac Res Res DSF Acc Machines Accessed 24 | . . . 1 . 1 2 . 6 2 . 1 4 1 4 . 2 Terminals 12 | . . . . . . 2 . 1 2 . . 2 . 4 . 1 Fabricators 1 | . . . . . . . . . . . . 1 . . . . Repair Stations . | . . . . . . . . . . . . . . . . . Recycling Units 2 | . . . . . . . . 2 . . . . . . . . Scanalyzers 3 | . . . . . . . . 2 . . . 1 . . . . Garrison Access 4 | . . . . . 1 . . 1 . . . . 1 . . 1 Total Hacks 56 | . . . 1 . 2 4 . 14 5 . 5 10 1 10 . 4 Successful 26 | . . . 1 . . 2 . 8 1 . 5 6 . 3 . . Failed 30 | . . . . . 2 2 . 6 4 . . 4 1 7 . 4 Catastrophic 5 | . . . . . . . . 1 1 . . . 1 1 . 1 Database Lockouts . | . . . . . . . . . . . . . . . . . Manual 15 | . . . 1 . . . . 2 4 . . 4 . 4 . . Terminals 29 | . . . . . . 4 . 2 5 . . 5 . 10 . 3 Fabricators 3 | . . . . . . . . . . . . 3 . . . . Repair Stations . | . . . . . . . . . . . . . . . . . Recycling Units 3 | . . . . . . . . 3 . . . . . . . . Scanalyzers 10 | . . . . . . . . 8 . . . 2 . . . . Garrison Access 5 | . . . . . 2 . . 1 . . . . 1 . . 1 Terminal Hacks 14 | . . . 1 . . 2 . . 1 . 5 3 . 2 . . Record 5 | . . . . . . . . . . . 5 . . . . . Part Schematic 1 | . . . . . . . . . . . . 1 . . . . Open DSF 3 | . . . . . . 1 . . 1 . . . . 1 . . Level Access Points 1 | . . . . . . . . . . . . 1 . . . . Branch Access Points 2 | . . . . . . 1 . . . . . 1 . . . . Terminal Index 1 | . . . . . . . . . . . . . . 1 . . Proto ID Catalog 1 | . . . 1 . . . . . . . . . . . . . Fabricator Hacks 1 | . . . . . . . . . . . . 1 . . . . Load Schematic 1 | . . . . . . . . . . . . 1 . . . . Repair Station Hacks . | . . . . . . . . . . . . . . . . . Recycling Unit Hacks 1 | . . . . . . . . 1 . . . . . . . . Retrieve Components 1 | . . . . . . . . 1 . . . . . . . . Scanalyzer 7 | . . . . . . . . 6 . . . 1 . . . . Retrieve Study 7 | . . . . . . . . 6 . . . 1 . . . . Garrison Access Hacks . | . . . . . . . . . . . . . . . . . Unauthorized Hacks 3 | . . . . . . . . 1 . . . 1 . 1 . . Terminals 3 | . . . . . . . . 1 . . . 1 . 1 . . Assimilate 1 | . . . . . . . . . . . . 1 . . . . Botnet 2 | . . . . . . . . 1 . . . . . 1 . . Fabricators . | . . . . . . . . . . . . . . . . . Repair Stations . | . . . . . . . . . . . . . . . . . Recycling Units . | . . . . . . . . . . . . . . . . . Scanalyzers . | . . . . . . . . . . . . . . . . . Garrison Access . | . . . . . . . . . . . . . . . . . Data Cores Recovered 1 | . . . . . . . . 1 . . . . . . . . Used . | . . . . . . . . . . . . . . . . . Hacking Detections 18 | . . . . . 1 1 . 4 1 . . 4 1 4 . 2 Full Trace Events 2 | . . . . . . . . . . . . . . 1 . 1 Feedback Events . | . . . . . . . . . . . . . . . . . Feedback Blocked . | . . . . . . . . . . . . . . . . . Robot Schematics Acquired . | . . . . . . . . . . . . . . . . . Robots Built . | . . . . . . . . . . . . . . . . . Authchips . | . . . . . . . . . . . . . . . . . Time . | . . . . . . . . . . . . . . . . . Total Robot Build Rating . | . . . . . . . . . . . . . . . . . Part Schematics Acquired 1 | . . . . . . . . . . . . 1 . . . . Parts Built . | . . . . . . . . . . . . . . . . . Authchips . | . . . . . . . . . . . . . . . . . Time . | . . . . . . . . . . . . . . . . . Total Part Build Rating . | . . . . . . . . . . . . . . . . . Part Studies Acquired 7 | . . . . . . . . 6 . . . 1 . . . . Parts Repaired . | . . . . . . . . . . . . . . . . . Time . | . . . . . . . . . . . . . . . . . Parts Recycled . | . . . . . . . . . . . . . . . . . Recycled Matter . | . . . . . . . . . . . . . . . . . Retrieved Matter . | . . . . . . . . . . . . . . . . . Retrieved Components 3 | . . . . . . . . 3 . . . . . . . . Parts Scanalyzed . | . . . . . . . . . . . . . . . . . Part Schematics Acquired . | . . . . . . . . . . . . . . . . . Parts Damaged . | . . . . . . . . . . . . . . . . . Bothacking | -11 -10 -10 -10 -9 -8 -7 -7 -6 -5 -5 -5 -4 -3 -2 -2 -1 ------------ Run | Yrd Mat Min Exi Min Mat Fac DSF Fac Fac Upp Upp Fac Res Res DSF Acc Used RIF Installer . | . . . . . . . . . . . . . . . . . Robots Hacked . | . . . . . . . . . . . . . . . . . Non-combat . | . . . . . . . . . . . . . . . . . Combat . | . . . . . . . . . . . . . . . . . Robot Hacks Applied . | . . . . . . . . . . . . . . . . . Relay Couplers Released . | . . . . . . . . . . . . . . . . . Fabnet Peak Effective % . | . . . . . . . . . . . . . . . . . Robots Rewired 2 | . . . . . . . . . . . 2 . . . . . Allies Hacked . | . . . . . . . . . . . . . . . . . Hacks Repelled . | . . . . . . . . . . . . . . . . . Allies | -11 -10 -10 -10 -9 -8 -7 -7 -6 -5 -5 -5 -4 -3 -2 -2 -1 -------- Run | Yrd Mat Min Exi Min Mat Fac DSF Fac Fac Upp Upp Fac Res Res DSF Acc Total Allies 3 | . . . . . . . . . . . 2 1 . . . . Largest Group 2 | . . . . . . . . . . . 2 1 . . . . Highest-Rated Group 78 | . . . . . . . . . . . 78 26 . . . . Highest-Rated Ally 49 | . . . . . . . . . . . 49 26 . . . . Total Orders . | . . . . . . . . . . . . . . . . . Ally Attacks 2 | . . . . . . . . . . . 2 . . . . . Total Damage 36 | . . . . . . . . . . . 36 . . . . . Kills . | . . . . . . . . . . . . . . . . . Allies Corrupted . | . . . . . . . . . . . . . . . . . Allies Melted . | . . . . . . . . . . . . . . . . . Intel | -11 -10 -10 -10 -9 -8 -7 -7 -6 -5 -5 -5 -4 -3 -2 -2 -1 ------- Run | Yrd Mat Min Exi Min Mat Fac DSF Fac Fac Upp Upp Fac Res Res DSF Acc Active Infowar (turns) 738 | . . . . . . . . 449 . . . . 276 1 . 12 Optics 276 | . . . . . . . . . . . . . 276 . . . Structural 449 | . . . . . . . . 449 . . . . . . . . Jamming 1 | . . . . . . . . . . . . . . 1 . . ECM 12 | . . . . . . . . . . . . . . . . 12 Robot Analysis Total . | . . . . . . . . . . . . . . . . . Derelict Logs Recovered 1 | . . 1 . . . . . . . . . . . . . . Drone Launches . | . . . . . . . . . . . . . . . . . Drone Recoveries . | . . . . . . . . . . . . . . . . . Exploration | -11 -10 -10 -10 -9 -8 -7 -7 -6 -5 -5 -5 -4 -3 -2 -2 -1 ------------- Run | Yrd Mat Min Exi Min Mat Fac DSF Fac Fac Upp Upp Fac Res Res DSF Acc Turns Passed 3606 | 7 64 220 107 16 157 38 22 601 247 142 614 244 320 182 31 594 Spaces Moved 6105 | 3 124 384 214 31 263 75 34 1277 484 333 597 578 635 383 42 648 Core 1396 | 3 124 384 214 31 263 1 15 7 41 24 244 1 1 1 42 . Treads . | . . . . . . . . . . . . . . . . . Legs . | . . . . . . . . . . . . . . . . . Wheels . | . . . . . . . . . . . . . . . . . Hover 2 | . . . . . . . . 2 . . . . . . . . Flight 4707 | . . . . . . 74 19 1268 443 309 353 577 634 382 . 648 Fastest Speed 20 | 50 50 50 50 50 50 40 35 20 32 32 32 32 32 25 50 29 Average Speed 35 | 50 50 50 50 50 50 40 41 27 33 33 39 32 32 29 50 33 Slowest Speed 112 | 50 50 50 50 50 100 50 50 60 112 50 100 50 50 50 50 35 Overloaded Moves . | . . . . . . . . . . . . . . . . . Propulsion Burnouts . | . . . . . . . . . . . . . . . . . Robots Hopped 19 | . . . . . . 1 . 4 2 . . . 1 2 . 9 Potential Cave-ins . | . . . . . . . . . . . . . . . . . Cave-ins Triggered . | . . . . . . . . . . . . . . . . . Exploration Rate (%) 30 | 2 28 91 61 8 32 3 41 28 11 55 46 16 15 14 44 15 Regions Visited 16 Branch Regions 5 Pre-discovered Areas 2 | . . 2 . . . . . . . . . . . . . . Known Exits Taken 4 | . . . . . . 1 . . . . . 1 1 1 . . Unknown Exits Taken 10 | 1 1 1 1 1 1 . . 1 1 1 1 . . . . . Scrap Searched 4 | . . 2 . . . . . . . 1 1 . . . . . Spaces Dug 82 | . . . . . 9 . . 15 20 4 . 8 10 8 . 8 Terrain Destroyed 180 | . . . . . 79 . . 16 32 4 . 8 10 13 . 18 Melee 42 | . . . . . . . . 11 9 4 . 8 10 . . . Projectile 31 | . . . . . . . . . . . . . . 13 . 18 AOE 107 | . . . . . 79 . . 5 23 . . . . . . . Terrain Rammed . | . . . . . . . . . . . . . . . . . Walls Destroyed . | . . . . . . . . . . . . . . . . . Machines Disabled . | . . . . . . . . . . . . . . . . . Actions | -11 -10 -10 -10 -9 -8 -7 -7 -6 -5 -5 -5 -4 -3 -2 -2 -1 --------- Run | Yrd Mat Min Exi Min Mat Fac DSF Fac Fac Upp Upp Fac Res Res DSF Acc Total 7360 | 12 125 411 213 32 284 82 41 1470 540 352 974 618 733 431 51 991 Wait 878 | . . 15 . . 8 . . 98 18 . 336 17 58 10 10 308 Move 6054 | 2 123 383 213 30 262 72 33 1270 479 332 596 577 632 378 41 631 Hop 15 | . . . . . . 1 . 2 2 . . . 1 2 . 7 Pick Up 30 | . 1 1 . 1 3 1 1 7 . . . 1 5 4 . 5 Fast Attach 60 | . . 1 . . . 1 4 13 2 1 4 3 7 13 . 11 Attach 50 | . . 2 . . 5 4 . 8 9 4 . 3 5 3 . 7 Detach 46 | 3 . 2 . . 2 3 1 11 9 4 . 3 5 2 . 1 Swap 4 | . . 1 . . . . . 3 . . . . . . . . Drop 42 | 7 1 2 . 1 . . 2 9 1 2 4 2 7 3 . 1 Fire 47 | . . . . . 4 . . 3 4 . . . . 16 . 20 Melee 81 | . . . . . . . . 31 16 9 . 12 13 . . . Ram 1 | . . 1 . . . . . . . . . . . . . . Kick 3 | . . 3 . . . . . . . . . . . . . . Crush . | . . . . . . . . . . . . . . . . . Escape Stasis 15 | . . . . . . . . 15 . . . . . . . . Rewire 34 | . . . . . . . . . . . 34 . . . . . Trap . | . . . . . . . . . . . . . . . . . Miscellaneous . | . . . . . . . . . . . . . . . . . Route ------- -11/Scrapyard -10/Materials -10/Mines (discovered 3 exits: [*Mat] / *Exi / [*Sub]) -10/Exiles -9/Mines -8/Materials -7/Factory (discovered 3 exits: Low x2 / DSF) -7/DSF -6/Factory (discovered 3 exits: *Fac / *Low / [*Ext]) -5/Factory -5/Upper Caves -5/Upper Caves -4/Factory (discovered 7 exits: *Res x4 / *Upp x2 / Arm) -3/Research -2/Research (discovered 2 exits: *Acc / DSF) -2/DSF -1/Access To Epsilon Eridani History --------- Turn | Location | Event 7 | -11/Scrapyard | Discovered new exit (range 1) 8 | -11/Scrapyard | Entered Materials 69 | -10/Materials | Discovered new exit (range 7) 72 | -10/Materials | Entered Mines 75 | -10/Mines | Core integrity fell below 50% 158 | -10/Mines | Discovered new exit (range 8) 176 | -10/Mines | Discovered new exit (range 8) 216 | -10/Mines | Learned location of Mines (-9) 285 | -10/Mines | Learned location of Storage (-8) 287 | -10/Mines | Deemed a non-threat by the Exiles lab entrance 287 | -10/Mines | Discovered new exit (range 5) 292 | -10/Mines | Entered Exiles 305 | -10/Exiles | Met 8R-AWN 312 | -10/Exiles | Build established: Mutant 314 | -10/Exiles | Met EX-HEX 327 | -10/Exiles | Met EX-BIN 333 | -10/Exiles | Aligned with FarCom system 334 | -10/Exiles | Given EX-Vault access code 347 | -10/Exiles | Opened EX-Vault 361 | -10/Exiles | Warned to stay clear of 0b10 Research branches 377 | -10/Exiles | Met EX-DEC 394 | -10/Exiles | Discovered new exit (range 14) 399 | -10/Exiles | Entered Mines 404 | -9/Mines | Discovered new exit (range 12) 411 | -9/Mines | Received a Rocket Launcher from a helpful Derelict 415 | -9/Mines | Entered Materials 415 | -8/Materials | Evolved 4 slots: Propulsion x3, Utility x1 564 | -8/Materials | Discovered new exit (range 15) 572 | -8/Materials | Released all parts (3) 572 | -8/Materials | Entered Factory 572 | -7/Factory | Evolved 2 slots: Propulsion x1, Utility x1 598 | -7/Factory | Identified exit to Lower Caves 609 | -7/Factory | Identified exit to DSF 610 | -7/Factory | Released all parts (2) 610 | -7/Factory | Entered DSF 626 | -7/DSF | Discovered new exit (range 13) 632 | -7/DSF | Entered Factory 632 | -6/Factory | Evolved 2 slots: Utility x2 655 | -6/Factory | Lost 3 parts (3n) 836 | -6/Factory | Discovered new exit (range 12) 851 | -6/Factory | Build established: Sprinter 948 | -6/Factory | Discovered new exit (range 6) 957 | -6/Factory | Identified exit to Lower Caves 1024 | -6/Factory | Discovered new exit (range 5) 1233 | -6/Factory | Released all parts (10) 1233 | -6/Factory | Entered another Factory area 1233 | -5/Factory | Evolved 2 slots: Power x1, Utility x1 1251 | -5/Factory | Identified exit to DSF 1418 | -5/Factory | Spotted B-75 Beast 1473 | -5/Factory | Discovered new exit (range 9) 1480 | -5/Factory | Entered Upper Caves 1551 | -5/Upper Caves | Spotted B-75 Beast 1611 | -5/Upper Caves | Discovered new exit (range 4) 1622 | -5/Upper Caves | Entered another Upper Caves area 1716 | -5/Upper Caves | Attracted the attention of an 0b10 outpost 1751 | -5/Upper Caves | Learned Factory stockpile data 2158 | -5/Upper Caves | Discovered new exit (range 8) 2236 | -5/Upper Caves | Entered Factory 2236 | -4/Factory | Evolved 2 slots: Propulsion x1, Utility x1 2253 | -4/Factory | Identified exit to Upper Caves 2253 | -4/Factory | Identified exit to Armory 2253 | -4/Factory | Identified exit to Research 2480 | -4/Factory | Released all parts (2) 2480 | -4/Factory | Entered Research 2480 | -3/Research | Evolved 2 slots: Propulsion x1, Utility x1 2792 | -3/Research | Discovered new exit (range 5) 2793 | -3/Research | Identified exit to Research 2800 | -3/Research | Released all parts (6) 2800 | -3/Research | Entered another Research area 2800 | -2/Research | Evolved 2 slots: Propulsion x1, Utility x1 2961 | -2/Research | Discovered new exit (range 15) 2980 | -2/Research | Identified exit to DSF 2982 | -2/Research | Released all parts (14) 2982 | -2/Research | Entered DSF 3003 | -2/DSF | Additional patrols routed to DSF 3007 | -2/DSF | Discovered new exit (range 12) 3013 | -2/DSF | Entered Access 3013 | -1/Access | Evolved 2 slots: Propulsion x1, Utility x1 3286 | -1/Access | Build established: Mutant 3294 | -1/Access | Found Prototype Device 3294 | -1/Access | Identified Exp. EM Shield 3589 | -1/Access | Spotted B-99 Colossus 3589 | -1/Access | Spotted B-99 Colossus 3604 | -1/Access | Discovered new exit (range 4) 3607 | *** | Escaped! Last Messages --------------- 03594_ Slug penetrates B-99 Colossus. 03594_ Slug penetrates Sealed Heavy Doors. 03594_ Slug penetrates B-99 Colossus. 03594_ Penetrated by Slug. 03594_ Slug penetrates Reinforced Barrier. 03596_ B-99 Colossus activates siege mode. 03596_ Adv. Melee Analysis Suite destroyed. 03596_ Critical hit (Blast). 03596_ Adv. Phase Shifter destroyed. 03596_ Penetrated by Slug. 03596_ Slug penetrates Sealed Heavy Doors. 03596_ Penetrated by Slug. 03596_ Slug penetrates Sealed Heavy Doors. 03600_ ECM Suite destroyed. 03600_ Penetrated by Slug. 03600_ Slug penetrates Sealed Barrier. 03600_ Penetrated by Slug. 03600_ Slug penetrates Sealed Barrier. 03604_ Main Access Shell breached. 03604_ EXIT=FOUND Map ----- +----------------------------------------------------+ | "" # #??????# ?? #??????????? | | "" # #??????# #??????????? | | "" # #??????# #??????????? | | # #??????# """"" #??????????? | | # #??????# """"""""#??????????? | | # #??????# """"""""#??????????? | | = #######/######?###### """"" #??????????? | | ########## ####### # #??????????? | | "T # #??????????? | | "" " + #??????????? | | ######/### ####### # / ????? | | ???? ## ##?######+################### ???? | | ?? ## #??# ] #?????????????? ??? | | # ## #??# *#?????????????? ????? | | # ## #??# !! #?????????????? #???? | | # "" ## #??# ] !!=#?????????????? ##### | | # """" ## #??# !!=#?????????????? | | # """" ## #??##############?????????????? | | # """" ## #?????????????????????????????? | | # ???"" ##Y #######"###????##???#########?# | | # ????? ## """T"""" ???? "??" #?# " | | #?????? ## """ """" ???? "??" BB #?# "" | | ??????? ## " """""" "??" BB ### | | ??????? ## " " " "??" | | ???????? ## " " "" " "??" % = | | ???????? ?# " " @" " "??" %! | | ??????????# " " """" ]! * | | ??????????# " """""" ""%" BB ### "" | | ??????????# " % BB% #?# "" | | ??????????# " """"%% #?# | | ??????????# #######"##########??#########?# | | ??????????# #????????????????????????????## | | ?#????????# #???????????????????????????##" | | ?# ??????# #????????????????############"# | | ?# ????# #????????????????# # "" | | ?# ??# #????????????????# * ! # "" | | ?# == # ###############??# " # | | ?# == + #??# """" # | | ?+ == # #??# """"" # | | ?# ??# #####+###### #??# """"" # | | ?# =????# #?? ???# #??# """" # ## | | ?# ??????# ## ?# #??# ] " # #? | | ?#????????# ## ## #??# # #? | | ??????????# ## " ## #??# # #? | | ?????????? ## """ ## #??# + +? | | ?????????? ## """ ## ##?# # #? | | ?????????## ## " # #########+###### ??? | | ??????????# ## ! # #??????????? | | ??????????# ## # " #??????????? | | ??????????# #####?#?### ##### ###+#??????????? | +----------------------------------------------------+ Best States ------------- Heat Dissipation 52 Energy Generation 19 Energy Capacity 160 Matter Stores 300 Matter Capacity 300 Sight Range 22 Terrain Scan Density 10 ECM Strength 1 Armor Coverage 150 Propulsion Shielding 66 Phase Shifting 15 Evasion (%) 87 Melee Accuracy 8 Core Analysis 6 Recoil Reduction 3 Offensive Hacking 10 Defensive Hacking 20 Item Schematics ----------------- Q-thruster | -4/Factory | Hacked Robot Schematics ------------------ None Fabricated ------------ Nothing Repaired ---------- Nothing Studied --------- Cesium-ion Thruster | -6/Factory | Hacked Mic. Nuclear Core | -6/Factory | Hacked Rocket Launcher | -6/Factory | Hacked Spear | -6/Factory | Hacked Gauss Rifle | -6/Factory | Hacked Lgt. Assault Rifle | -6/Factory | Hacked VTOL Module | -4/Factory | Hacked Alien Tech Used ----------------- None Achievements -------------- None Challenges ------------ None Game ------ Seed DerelictBoreNeutralizer Manual? 0 Play Time 00:41:44 Cumulative 1278.0 hours Start 2025.12.20 @ 21:14:34 End 2025.12.20 @ 22:02:41 Sessions 1 Manual Loads 0 Difficulty Rogue Special Mode None Game No. 553 Rogue 552 Adventurer 1 Explorer 0 Win Type 0 Total 205 Types 61/17/31/5/2/1/78/4/4/2 Lore% 99 Gallery% 98 Achievement% 77 Wizard Run 0 Options --------- Layout 2 ASCII 0 Keyboard 1 Movement Numpad Keybinds 0 Fullscreen 0 Font 24/Terminus Map View 50x44 Zoom Use 0% Tactical HUD 1 Map Filters NONE Filters NONE Steam X RUN: f5bbb7e3-b99d-4333-add5-b43be45f182d